bitfinex/quotes_ETHUSD_20250411
["timestamp","ask_amount","ask_price","bid_price","bid_amount"]
[1744362491814,6.46341,1547.2,1546.9,6.6215018]
[1744362492023,7.26641,1547.5,1547.1,6.46347]
[1744362492269,13.72875,1547.5,1547.1,7.22197]
[1744362492420,13.72875,1547.5,1547.2,0.15409184]
[1744362492624,13.72864,1547.5,1547.2,0.15409184]
[1744362492921,0.8043,1547.5,1547.1,0.7585]
[1744362493220,6.46277,1547.4,1547.2,0.15409184]
[1744362493422,6.46287,1547.3,1547.2,0.15409184]
[1744362493635,6.46287,1547.3,1547.0,6.46407]
[1744362493842,6.46287,1547.3,1547.2,0.15409184]
[1744362494040,6.46209,1547.5,1547.2,6.61721184]
[1744362494230,12.92363,1547.6,1547.2,14.35636118]
[1744362494436,6.46179,1547.6,1547.3,0.15289386]
[1744362494858,0.7635,1547.7,1547.3,0.15289386]
[1744362495051,6.46216,1547.5,1547.3,0.15289386]
[1744362495548,0.7635,1547.7,1547.3,0.15289386]
[1744362495753,6.46205,1547.5,1547.3,0.15289386]
[1744362495951,6.46203,1547.6,1547.3,0.15289386]
[1744362496267,6.46167,1547.6,1547.3,0.15289386]
[1744362497043,6.46228,1547.5,1547.3,0.15289386]
[1744362497233,6.46169,1547.6,1547.3,0.15289386]
[1744362497433,6.46204,1547.5,1547.3,0.15289386]
[1744362497628,6.46245,1547.4,1547.3,0.15289386]
[1744362498060,6.46245,1547.4,1547.0,13.70949]
[1744362498227,6.46245,1547.4,1547.1,1.370949]
[1744362498433,6.46245,1547.4,1547.1,7.98855542]
[1744362498633,6.46204,1547.5,1547.2,6.46325]
[1744362498828,6.46174,1547.6,1547.2,12.99112995]
[1744362499057,6.46245,1547.4,1547.3,0.15236886]
[1744362499466,6.46245,1547.4,1547.1,6.46369]
[1744362499768,6.46245,1547.4,1547.1,7.834622]
[1744362499939,6.46245,1547.4,1547.2,0.1477344]
[1744362500267,6.46245,1547.4,1547.1,7.834622]
[1744362500445,6.46245,1547.4,1547.3,0.14712003]
[1744362500646,6.46245,1547.4,1547.2,0.1477344]
[1744362500838,6.46245,1547.4,1547.3,0.14712003]
[1744362501573,6.46245,1547.4,1547.1,7.834622]
[1744362501775,6.46245,1547.4,1547.2,0.1477344]
[1744362501978,6.46245,1547.4,1547.1,7.834622]
[1744362502146,6.46245,1547.4,1547.2,0.1477344]
[1744362502478,12.92442,1547.5,1547.1,7.834482]
[1744362502653,6.4625,1547.4,1547.3,0.14712003]
[1744362502853,6.4625,1547.4,1547.2,0.1477344]
[1744362503169,6.4625,1547.4,1547.3,0.14712003]
[1744362503545,12.92516,1547.4,1547.3,0.14712003]
[1744362503751,6.4625,1547.4,1547.0,7.24562]
[1744362504064,6.4625,1547.4,1547.1,0.14834886]
[1744362504246,6.4625,1547.4,1547.1,6.61203886]
[1744362504447,6.46328,1547.2,1547.1,0.14834886]
[1744362505675,6.46328,1547.2,1546.9,7.26723]
[1744362505882,6.46328,1547.2,1547.1,0.14834886]
[1744362506091,12.92675,1547.2,1547.0,0.14896339]
[1744362506268,12.92675,1547.2,1547.1,0.14834886]
[1744362506478,12.92618,1547.3,1547.1,0.14834886]
[1744362506689,5.14342941,1548.3,1547.3,0.7583]
[1744362506893,9.41e-06,1548.3,1548.2,10.24551]
[1744362507178,0.1,1548.4,1548.2,10.24551]
[1744362507179,9.41e-06,1548.4,1548.3,14.74696074]
[1744362507477,9.41e-06,1548.4,1548.3,12.50176166]
[1744362507653,6.24891665,1548.7,1548.6,6.45744]
[1744362507851,6.24891665,1548.7,1548.6,17.58631016]
[1744362508071,6.24891665,1548.7,1548.6,16.51840452]
[1744362508359,6.24891665,1548.7,1548.6,20.06840452]
[1744362508880,6.24891665,1548.7,1548.6,20.6663994]
[1744362509080,6.65e-06,1548.7,1548.6,20.6663994]
[1744362509397,6.65e-06,1548.7,1548.6,21.13979845]
[1744362511165,7.24341,1549.6,1549.1,6.45507]
[1744362511506,0.7901,1549.6,1549.2,6.45476]
[1744362511797,7.24342,1549.6,1549.3,0.12905997]
[1744362511965,7.24342,1549.6,1549.2,5.34692399]
[1744362512150,7.24342,1549.6,1549.1,12.91017]
[1744362512350,0.724342,1549.5,1549.3,0.12533478]
[1744362512550,0.724342,1549.5,1549.4,0.12483865]
[1744362512787,0.724342,1549.5,1549.1,6.45507]
[1744362513098,0.724342,1549.5,1549.2,0.12606373]
[1744362513298,7.178062,1549.5,1549.2,0.12606373]
[1744362513593,7.1721962,1549.4,1549.3,0.12545115]
[1744362513750,6.4551,1549.2,1548.8,6.45651]
[1744362513952,6.45536,1549.1,1548.7,7.20757]
[1744362514152,6.45536,1549.1,1548.8,0.12851482]
[1744362514392,12.91096,1549.1,1548.8,0.12851482]
[1744362514598,14.202056,1549.1,1548.8,0.12851482]
[1744362514754,7.746456,1549.1,1548.8,0.12851482]
[1744362514954,6.45582,1549.0,1548.8,0.12851482]
[1744362515261,6.45582,1549.0,1548.6,21.674993]
[1744362515580,7.23676,1549.1,1548.7,6.52155966]
[1744362515768,7.23676,1549.1,1548.8,0.12793282]
[1744362515769,13.69237,1549.1,1548.8,0.12793282]
[1744362515958,6.45584,1549.0,1548.8,0.12793282]
[1744362516826,6.45536,1549.1,1548.8,6.58453282]
[1744362517177,12.91112,1549.1,1548.8,0.12793282]
[1744362517527,7.24429,1548.9,1548.8,0.12793282]
[1744362517678,10.24429,1548.9,1548.8,0.12793282]
[1744362517878,6.45799,1548.5,1548.2,7.23012]
[1744362518132,12.91607,1548.5,1548.1,13.91338]
[1744362518281,6.45799,1548.5,1548.3,0.12031785]
[1744362518486,12.91512,1548.6,1548.2,6.58006414]
[1744362518792,14.206632,1548.6,1548.3,0.1206672]
[1744362518994,14.206732,1548.6,1548.3,0.1206672]
[1744362519513,6.45788,1548.5,1548.3,0.1206672]
[1744362519909,6.45788,1548.5,1548.2,6.45905]
[1744362520110,6.45788,1548.5,1548.4,0.12121851]
[1744362520282,6.45788,1548.5,1548.3,0.12194839]
[1744362520624,6.45788,1548.5,1548.4,0.12133499]
[1744362520828,6.45788,1548.5,1548.2,6.45894]
[1744362520996,12.91597,1548.5,1548.3,0.12382372]
[1744362521192,12.91597,1548.5,1548.1,6.45949]
[1744362521395,0.7559,1548.4,1548.2,0.12443721]
[1744362521730,6.4605,1547.9,1547.6,0.7959]
[1744362521927,6.46092,1547.8,1547.4,13.40473525]
[1744362522087,6.46092,1547.8,1547.4,14.82462878]
[1744362522498,6.4612,1547.7,1547.4,7.88232353]
[1744362522706,6.4605,1547.9,1547.4,1.41989353]
[1744362523035,11.2607,1548.0,1547.7,6.46092]
[1744362523036,8.2607,1548.0,1547.7,6.46092]
[1744362523233,14.7208,1548.0,1547.6,6.46153]
[1744362523386,21.18098,1548.0,1547.6,12.92295]
[1744362523592,21.18098,1548.0,1547.6,6.46142]
[1744362523949,6.46038,1547.9,1547.6,6.46142]
[1744362524098,12.92112,1547.9,1547.3,0.7942]
[1744362524298,6.46043,1547.9,1547.5,6.46183]
[1744362524499,6.46043,1547.9,1547.5,12.92366]
[1744362524930,12.92103,1547.9,1547.5,6.46183]
[1744362525312,6.46084,1547.8,1547.5,6.46183]
[1744362525845,7.26128054,1547.9,1547.5,6.46183]
[1744362526197,7.26123054,1547.9,1547.5,6.46199]
[1744362526500,6.46096,1547.8,1547.5,6.46199]
[1744362526695,6.46096,1547.8,1547.4,6.4624]
[1744362526913,6.46133,1547.7,1547.4,6.4624]
[1744362527127,12.92273,1547.7,1547.3,12.92556]
[1744362527328,6.46216,1547.5,1547.2,13.91724]
[1744362527551,6.46216,1547.5,1547.2,6.46322]
[1744362527752,12.92439,1547.5,1547.2,6.46322]
[1744362527956,6.46216,1547.5,1547.2,6.46322]
[1744362528164,12.92449,1547.5,1547.1,13.75862]
[1744362528341,6.46258,1547.4,1547.0,6.46406]
[1744362528658,12.92633,1547.3,1546.9,7.25317]
[1744362528871,0.7616,1547.6,1547.0,6.52875445]
[1744362529032,7.21105,1547.8,1547.5,6.46188]
[1744362529233,7.28307,1548.0,1547.6,6.46133]
[1744362529435,7.28307,1548.0,1547.7,6.46118]
[1744362529436,13.74327,1548.0,1547.7,6.46118]
[1744362530070,7.28307,1548.0,1547.7,6.52578359]
[1744362530570,13.74327,1548.0,1547.6,12.92277]
[1744362531341,7.28307,1548.0,1547.7,0.13649012]
[1744362531656,13.74326,1548.0,1547.8,0.13587583]
[1744362531869,13.74326,1548.0,1547.6,12.92277]
[1744362532071,13.74326,1548.0,1547.9,0.13526162]
[1744362532273,13.74326,1548.0,1547.6,7.93016359]
[1744362532428,6.46039,1547.9,1547.6,7.93016359]
[1744362532630,0.8229,1548.0,1547.6,1.46883359]
[1744362532829,6.4608,1547.8,1547.5,6.93512585]
[1744362533031,6.46064,1547.9,1547.6,6.4616]
[1744362533862,6.46064,1547.9,1547.5,6.4619]
[1744362534062,6.46099,1547.8,1547.5,6.4619]
[1744362534949,7.28289,1548.0,1547.6,6.52609731]
[1744362535155,6.46083,1547.8,1547.6,0.06460731]
[1744362535354,6.46083,1547.8,1547.6,0.71726604]
[1744362535568,6.46051,1547.9,1547.6,7.17883604]
[1744362535859,7.28295,1548.0,1547.6,13.57559873]
[1744362535860,13.74309,1548.0,1547.6,13.57559873]
[1744362536065,6.46048,1547.9,1547.6,7.11412873]
[1744362536266,7.28295,1548.0,1547.6,13.57559873]
[1744362536766,13.74308,1548.0,1547.6,13.57559873]
[1744362537060,12.92107,1547.9,1547.6,7.11412873]
[1744362537965,6.46046,1547.9,1547.6,7.11412873]
[1744362538873,12.92112,1547.9,1547.6,7.11412873]
[1744362539075,6.46046,1547.9,1547.6,7.11412873]
[1744362539366,6.46046,1547.9,1547.6,13.57561873]
[1744362539575,13.74304,1548.0,1547.6,13.57559873]
[1744362539868,6.46051,1547.9,1547.6,0.65265873]
[1744362540065,13.74313,1548.0,1547.7,0.06460541]
[1744362540266,3.0,1548.2,1547.7,7.88954682]
[1744362540267,12.91932,1548.1,1547.7,7.88954682]
[1744362540470,6.45953,1548.1,1547.7,1.36401141]
[1744362540674,6.46081,1547.8,1547.6,0.8144]
[1744362540973,12.92177,1547.8,1547.5,6.46188]
[1744362541133,6.46081,1547.8,1547.5,6.46188]
[1744362542965,6.46012,1548.0,1547.6,6.52597716]
[1744362543270,6.45964,1548.1,1547.8,0.7564]
[1744362543441,6.46043,1547.9,1547.6,1.41502317]
[1744362543635,12.9212,1547.9,1547.6,0.8154]
[1744362543840,6.46082,1547.8,1547.6,0.8154]
[1744362544039,12.92177,1547.8,1547.5,6.46202]
[1744362544273,12.92177,1547.8,1547.6,0.60077038]
[1744362544566,6.45845,1548.4,1548.1,0.7888]
[1744362544870,12.91791,1548.3,1547.9,13.70912]
[1744362545070,6.45883,1548.3,1547.9,13.70912]
[1744362545568,6.4579,1548.5,1548.1,6.45948]
[1744362545868,6.4589,1548.3,1548.0,0.60110028]
[1744362546035,6.45935,1548.2,1548.0,0.60110028]
[1744362546370,6.45935,1548.2,1548.1,0.13104982]
[1744362546578,0.33587236,1549.5,1549.3,6.45425]
[1744362546773,0.33587236,1549.5,1549.1,0.7988]
[1744362546940,6.45385,1549.5,1549.4,0.12231962]
[1744362547254,6.45385,1549.5,1549.0,6.45557]
[1744362547255,6.45412,1549.4,1549.0,6.45557]
[1744362547476,7.25368,1549.3,1548.9,6.45613]
[1744362547790,7.25368,1549.3,1548.8,21.47474]
[1744362548164,7.25368,1549.3,1548.9,6.45608]
[1744362548362,0.799,1549.3,1548.8,0.7988]
[1744362548555,0.799,1549.3,1548.7,6.947487]
[1744362548556,6.45557,1549.1,1548.7,6.947487]
[1744362548761,7.25353,1549.3,1548.9,6.45613]
[1744362548961,0.725353,1549.2,1548.9,6.45612]
[1744362549185,13.7083,1549.3,1548.9,6.45612]
[1744362549386,6.45498,1549.2,1548.8,12.91293]
[1744362549589,7.25353,1549.3,1548.9,6.45602]
[1744362549774,7.25353,1549.3,1548.9,6.45619]
[1744362549775,6.45518,1549.2,1548.9,6.45619]
[1744362550098,7.25357,1549.3,1548.9,12.97693471]
[1744362550283,0.799,1549.3,1549.0,6.45564]
[1744362550608,21.44954,1549.5,1549.1,6.51967889]
[1744362550765,6.45433,1549.4,1549.0,13.6906]
[1744362551095,7.2345,1549.5,1548.9,1.29769347]
[1744362551096,6.45494,1549.2,1548.9,1.29769347]
[1744362551293,12.9102,1549.2,1548.8,6.45654]
[1744362551481,12.91022,1549.2,1548.8,6.45654]
[1744362551684,0.796,1549.1,1548.6,6.45744]
[1744362551981,6.45626,1548.9,1548.5,7.25713]
[1744362552182,6.45666,1548.8,1548.5,6.45783]
[1744362553112,12.9136,1548.8,1548.4,6.45822]
[1744362553265,13.6889,1548.7,1548.3,7.24051]
[1744362553463,6.45795,1548.5,1548.2,6.45905]
[1744362553757,6.45786,1548.5,1547.8,6.46072]
[1744362553862,6.45872,1548.3,1547.7,2.01784645]
[1744362554176,7.23275,1548.4,1548.0,6.45974]
[1744362554376,7.956025,1548.4,1548.0,6.45974]
[1744362554576,6.45883,1548.3,1547.9,6.46031]
[1744362554787,6.45924,1548.2,1547.9,6.46031]
[1744362555687,6.45953,1548.1,1547.8,6.46075]
[1744362555998,6.45874,1548.3,1547.9,12.92058]
[1744362556201,7.23265,1548.4,1548.0,7.751798]
[1744362556495,0.7743,1548.4,1548.1,6.4594]
[1744362556799,6.45845,1548.4,1548.0,12.91966]
[1744362557293,6.45899,1548.3,1547.9,6.46034]
[1744362557524,12.91804,1548.3,1547.9,6.46034]
[1744362557876,12.91804,1548.3,1547.9,12.9205]
[1744362558084,12.91804,1548.3,1547.9,8.52821]
[1744362558410,12.91804,1548.3,1547.8,7.76]
[1744362558411,6.45971,1548.1,1547.8,7.76]
[1744362558571,9.45907,1548.3,1548.0,6.45972]
[1744362558765,7.21182,1548.4,1548.0,6.45972]
[1744362559097,6.45884,1548.3,1548.0,6.45972]
[1744362559476,12.91782,1548.3,1547.9,6.46031]
[1744362560189,6.45922,1548.2,1547.9,8.52841]
[1744362560705,6.45884,1548.3,1547.9,8.52839]
[1744362560999,6.45884,1548.3,1548.0,6.45976]
[1744362561400,7.21178,1548.4,1548.1,6.58863787]
[1744362562202,0.7535,1548.4,1548.1,13.04799787]
[1744362562414,6.45794,1548.5,1548.2,6.45897]
[1744362562799,6.45794,1548.5,1548.3,0.12711427]
[1744362563624,12.91599,1548.5,1548.3,0.12711427]
[1744362563915,6.45794,1548.5,1548.1,14.99812979]
[1744362564220,6.45794,1548.5,1548.2,0.12796109]
[1744362564518,21.43294,1548.6,1548.2,6.45908]
[1744362564821,21.43294,1548.6,1548.3,0.12699769]
[1744362565381,6.458,1548.5,1548.3,0.12699769]
[1744362565616,12.91606,1548.5,1548.3,0.12699769]
[1744362566336,6.458,1548.5,1548.3,0.12699769]
[1744362567499,14.97534,1548.6,1548.3,0.12699769]
[1744362567500,21.43293,1548.6,1548.3,0.12699769]
[1744362567697,6.45754,1548.6,1548.3,6.58568769]
[1744362567933,6.45737,1548.7,1548.3,7.89013146]
[1744362568232,12.9161,1548.5,1548.3,0.12699769]
[1744362568444,6.45802,1548.5,1548.3,0.12699769]
[1744362570730,7.2215,1548.6,1548.3,6.58551769]
[1744362571024,6.45809,1548.5,1548.3,0.12699769]
[1744362571229,6.45803,1548.5,1548.3,0.12699769]
[1744362571526,6.45827,1548.4,1548.3,0.12699769]
[1744362571894,6.45926,1548.2,1547.9,7.2382]
[1744362572101,6.45881,1548.3,1548.0,0.128691]
[1744362572327,12.91771,1548.3,1548.0,6.588621]
[1744362572621,6.45881,1548.3,1548.0,6.588621]
[1744362572825,12.9168,1548.4,1548.1,6.45951]
[1744362573026,6.45911,1548.2,1548.1,0.12807718]
[1744362573329,10.76091,1548.2,1548.1,7.18e-06]
[1744362573627,6.45965,1548.1,1547.8,6.46078]
[1744362573928,6.46002,1548.0,1547.7,12.92236]
[1744362574128,12.92019,1548.0,1547.8,0.12303765]
[1744362574427,12.92015,1548.0,1547.6,12.92308]
[1744362574633,6.46002,1548.0,1547.7,0.36083231]
[1744362574829,12.92022,1548.0,1547.7,0.48448427]
[1744362575529,6.46002,1548.0,1547.7,0.12365196]
[1744362575826,6.46002,1548.0,1547.6,14.215388]
[1744362576027,6.46002,1548.0,1547.8,0.12303765]
[1744362576215,6.46002,1548.0,1547.6,14.215388]
[1744362576416,12.91934,1548.1,1547.9,0.12242342]
[1744362576625,6.45994,1548.0,1547.7,6.46119]
[1744362576829,12.92019,1548.0,1547.6,14.215328]
[1744362577025,6.46036,1547.9,1547.8,0.12303765]
[1744362577230,6.46078,1547.8,1547.7,0.12365196]
[1744362577698,12.92267,1547.7,1547.4,8.3061]
[1744362578029,6.46222,1547.5,1547.2,7.27903]
[1744362578630,6.46222,1547.5,1547.3,0.60145171]
[1744362579334,6.46245,1547.4,1547.3,0.60145171]
[1744362579723,6.46302,1547.3,1547.0,7.24534]
[1744362580452,6.46255,1547.4,1547.1,6.46344]
[1744362580632,12.92353,1547.6,1547.2,6.46301]
[1744362580798,6.46168,1547.6,1547.2,6.46301]
[1744362581135,12.92175,1547.8,1547.4,6.46242]
[1744362581337,6.46128,1547.7,1547.5,0.13149456]
[1744362581497,9.016918,1547.8,1547.5,0.13149456]
[1744362581833,9.016918,1547.8,1547.5,6.46187]
[1744362582016,6.46078,1547.8,1547.6,0.13087992]
[1744362582218,17.80797,1547.9,1547.3,7.26972]
[1744362582522,6.46139,1547.7,1547.3,7.26972]
[1744362583030,16.71956,1547.9,1547.5,6.46191]
[1744362583232,5.470556,1547.9,1547.4,6.46238]
[1744362583434,12.92283,1547.7,1547.4,6.46238]
[1744362583931,12.92354,1547.6,1547.3,7.26969]
[1744362584137,6.46172,1547.6,1547.3,7.26969]
[1744362584300,6.46203,1547.5,1547.3,0.807]
[1744362584505,12.92424,1547.5,1547.2,6.46299]
[1744362584707,6.4617,1547.6,1547.2,6.52761504]
[1744362584910,6.4617,1547.6,1547.3,6.46266]
[1744362585116,12.92357,1547.6,1547.2,12.92642]
[1744362585746,6.4617,1547.6,1547.2,12.92642]
[1744362585920,12.92351,1547.6,1547.2,12.92642]
[1744362586123,6.46213,1547.5,1547.2,6.46321]
[1744362586447,6.46213,1547.5,1547.2,12.92633]
[1744362586949,6.46213,1547.5,1547.2,12.99095336]
[1744362587113,6.46213,1547.5,1547.2,12.92633]
[1744362587648,6.4617,1547.6,1547.2,12.92633]
[1744362587859,12.9237,1547.6,1547.2,12.9909533]
[1744362588152,6.4617,1547.6,1547.3,6.46284]
[1744362588358,6.4617,1547.6,1547.3,12.92568]
[1744362588544,6.4617,1547.6,1547.3,6.46284]
[1744362588758,7.753995,1547.6,1547.3,6.46284]
[1744362589056,7.753995,1547.6,1547.2,6.46323]
[1744362589258,6.46206,1547.5,1547.2,12.99092282]
[1744362589568,6.4617,1547.6,1547.3,6.4626]
[1744362589923,6.4617,1547.6,1547.2,6.46323]
[1744362590150,6.46203,1547.5,1547.2,12.92646]
[1744362590451,6.46203,1547.5,1547.2,6.46323]
[1744362591058,12.92423,1547.5,1547.1,7.25736]
[1744362591264,6.463,1547.3,1547.0,6.46398]
[1744362591462,6.463,1547.3,1547.2,0.13380621]
[1744362591663,6.46328,1547.2,1547.1,0.1344212]
[1744362591833,9.46287,1547.3,1546.7,7.22057]
[1744362592027,9.46287,1547.3,1546.7,7.942587]
[1744362592028,12.92848,1547.0,1546.7,7.942587]
[1744362592223,6.46465,1546.9,1546.6,6.46569]
[1744362592627,12.92762,1547.1,1546.7,6.46505]
[1744362592850,0.7796,1547.2,1546.8,0.7733]
[1744362593051,21.27911,1547.4,1547.0,6.4639]
[1744362593258,21.27911,1547.4,1547.0,12.92789]
[1744362593457,6.46301,1547.3,1546.9,6.46444]
[1744362593659,6.46301,1547.3,1546.9,12.92888]
[1744362594246,23.8362583,1547.4,1547.0,12.92777]
[1744362595364,23.8362583,1547.4,1547.0,6.46385]
[1744362595556,6.46295,1547.3,1547.0,6.46385]
[1744362595954,6.46295,1547.3,1546.8,13.7031]
[1744362595955,6.4635,1547.2,1546.8,13.7031]
[1744362596153,12.92715,1547.2,1546.8,7.2382]
[1744362596366,12.92715,1547.2,1546.8,13.7031]
[1744362597059,2.38365083,1547.3,1546.8,0.7733]
[1744362597233,6.4639,1547.1,1546.7,12.93046]
[1744362597435,12.92778,1547.1,1546.7,12.93046]
[1744362597665,12.92778,1547.1,1546.8,0.14942163]
[1744362597872,6.46414,1547.0,1546.8,0.14942163]
[1744362598568,6.46454,1546.9,1546.5,14.01715]
[1744362598943,6.46454,1546.9,1546.5,6.46615]
[1744362599487,6.46525,1546.8,1546.5,6.46611]
[1744362599987,6.46559,1546.7,1546.4,0.8079]
[1744362600159,7.22019,1546.7,1546.3,6.46687]
[1744362600359,6.46579,1546.6,1546.1,0.1]
[1744362600589,6.46681,1546.4,1546.1,0.1]
[1744362600763,6.46718,1546.3,1546.1,0.1]
[1744362600967,7.26713,1546.5,1546.2,6.46746]
[1744362601340,6.46704,1546.4,1546.1,6.56784]
[1744362601587,6.46686,1546.4,1546.1,0.1]
[1744362601882,12.9339,1546.4,1546.1,0.1]
[1744362602081,14.30738,1546.4,1546.1,0.1]
[1744362602242,6.46713,1546.3,1546.1,0.1]
[1744362602446,6.46746,1546.2,1546.1,0.1]
[1744362602849,6.46713,1546.3,1546.1,0.1]
[1744362603293,0.8009,1546.5,1546.1,0.1]
[1744362603499,0.8009,1546.5,1546.2,6.46714]
[1744362603790,3.0,1546.6,1546.3,6.46702]
[1744362603990,0.7803,1546.7,1546.2,7.199964]
[1744362604198,6.46592,1546.6,1546.2,13.667244]
[1744362604493,12.93193,1546.6,1546.2,13.667244]
[1744362604795,6.46592,1546.6,1546.2,7.199814]
[1744362604960,12.93284,1546.5,1546.1,13.79377]
[1744362605146,7.24598,1546.7,1546.2,6.46735]
[1744362605350,12.93201,1546.6,1546.2,6.46735]
[1744362605584,6.46594,1546.6,1546.2,6.46735]
[1744362605750,6.46594,1546.6,1546.2,7.20637161]
[1744362606405,6.46594,1546.6,1546.3,0.1261919]
[1744362606591,6.46663,1546.4,1546.3,0.1261919]
[1744362606776,7.23403,1546.4,1546.3,0.1261919]
[1744362607090,13.70105,1546.4,1546.1,0.1]
[1744362607249,7.23403,1546.4,1546.3,0.1261919]
[1744362607452,6.46629,1546.5,1546.2,6.59414744]
[1744362607685,6.46663,1546.4,1546.3,0.1261919]
[1744362608009,6.46746,1546.2,1546.1,0.1]
[1744362608221,7.23556,1546.2,1546.1,0.1]
[1744362608376,7.23556,1546.2,1546.1,0.22742306]
[1744362608574,7.23556,1546.2,1546.1,0.1]
[1744362608811,7.23556,1546.2,1546.1,0.22742306]
[1744362609078,7.23556,1546.2,1546.1,0.1]
[1744362609303,7.23556,1546.2,1546.1,0.22742306]
[1744362611224,8.605838,1546.2,1546.1,0.22742306]
[1744362611420,12.155838,1546.2,1546.1,0.22742306]
[1744362611575,12.216638,1546.2,1546.1,0.22742306]
[1744362611783,18.306638,1546.2,1546.1,0.22742306]
[1744362611982,17.756638,1546.2,1546.1,0.22742306]
[1744362612182,16.38636,1546.2,1546.1,0.22742306]
[1744362613088,13.38636,1546.2,1546.1,0.22742306]
[1744362613503,16.38636,1546.2,1546.1,0.22742306]
[1744362614195,16.93636,1546.2,1546.1,0.22742306]
[1744362614404,23.73736,1546.2,1546.1,0.22742306]
[1744362614723,20.603542,1546.2,1546.1,0.22742306]
[1744362615219,20.053542,1546.2,1546.1,0.22742306]
[1744362616923,13.963542,1546.2,1546.1,0.22742306]
[1744362617933,1.02893902,1546.4,1546.1,0.22742306]
[1744362617934,6.46682,1546.4,1546.1,0.22742306]
[1744362618125,7.464,1546.5,1546.1,0.22742306]
[1744362618328,6.46746,1546.2,1546.1,0.22742306]
[1744362618713,6.46722,1546.3,1546.1,0.22742306]
[1744362618928,12.93458,1546.3,1546.1,0.22742306]
[1744362619108,12.93459,1546.3,1546.1,0.22742306]
[1744362619546,6.46746,1546.2,1546.1,0.22742306]
[1744362620227,12.93459,1546.3,1546.1,0.22742306]
[1744362620430,6.46722,1546.3,1546.1,0.22742306]
[1744362620605,13.93031,1546.5,1546.2,0.7711]
[1744362620804,13.93031,1546.5,1546.2,7.23844]
[1744362621009,6.46665,1546.4,1546.3,0.12981279]
[1744362621204,7.28735,1546.4,1546.3,0.12981279]
[1744362621450,6.46746,1546.2,1546.1,0.1]
[1744362621644,8.060931,1546.2,1546.1,0.1]
[1744362621813,8.060931,1546.2,1546.1,0.23104392]
[1744362622136,8.060931,1546.2,1546.1,0.1]
[1744362622335,8.060931,1546.2,1546.1,0.23104392]
[1744362622542,8.060931,1546.2,1546.1,0.1]
[1744362622953,8.060931,1546.2,1546.1,0.23104392]
[1744362623558,8.829331,1546.2,1546.1,0.23104392]
[1744362624040,9.379331,1546.2,1546.1,0.23104392]
[1744362624458,12.379331,1546.2,1546.1,0.23104392]
[1744362625176,12.379331,1546.2,1546.1,3.92e-06]
[1744362625177,19.180331,1546.2,1546.1,3.92e-06]
[1744362625352,6.47,1545.6,1545.4,9.9532352]
[1744362625530,6.47,1545.6,1545.5,0.6024421]
[1744362625730,6.47,1545.6,1545.5,0.96391126]
[1744362625946,7.763957,1545.6,1545.5,0.36146916]
[1744362626541,10.27921,1545.8,1545.3,0.36146916]
[1744362626750,10.27921,1545.8,1545.4,12.94131]
[1744362627151,16.74862,1545.8,1545.5,0.6025642]
[1744362627447,6.46966,1545.7,1545.5,0.6025642]
[1744362627646,6.46966,1545.7,1545.3,12.94223]
[1744362627957,12.93954,1545.7,1545.4,0.36170044]
[1744362628158,6.47001,1545.6,1545.4,0.36170044]
[1744362628341,6.47039,1545.5,1545.4,0.36170044]
[1744362628985,12.94025,1545.6,1545.4,0.96477914]
[1744362629326,12.94025,1545.6,1545.5,0.36170044]
[1744362629531,12.93936,1545.7,1545.5,0.36170044]
[1744362630258,6.46997,1545.6,1545.5,0.36170044]
[1744362630644,12.93939,1545.7,1545.5,0.36170044]
[1744362630968,16.7483,1545.8,1545.6,0.36170044]
[1744362631130,6.46956,1545.7,1545.6,0.36170044]
[1744362631537,6.46956,1545.7,1545.6,0.64239373]
[1744362631739,6.46956,1545.7,1545.6,0.36170044]
[1744362631965,6.46956,1545.7,1545.6,0.28069329]
[1744362632171,6.46956,1545.7,1545.4,6.47068]
[1744362632471,12.9394,1545.7,1545.5,0.28132013]
[1744362632632,8.38310451,1545.7,1545.5,0.28132013]
[1744362633465,8.38310451,1545.7,1545.4,6.47068]
[1744362633861,6.46956,1545.7,1545.5,0.64311073]
[1744362634673,13.93434,1546.0,1545.5,1.53051486]
[1744362634674,14.76485,1546.0,1545.5,1.53051486]
[1744362634874,13.93445,1546.0,1545.6,6.8313606]
[1744362635084,6.46879,1545.9,1545.6,7.4343947]
[1744362635242,6.46879,1545.9,1545.7,0.28006653]
[1744362635643,6.46879,1545.9,1545.8,0.3617906]
[1744362635840,12.93683,1546.0,1545.8,0.3617906]
[1744362636078,14.230513,1546.0,1545.8,0.64123045]
[1744362636286,6.46872,1545.9,1545.8,0.64123045]
[1744362636456,6.46872,1545.9,1545.8,0.27943985]
[1744362636857,6.46872,1545.9,1545.6,6.46994]
[1744362637072,14.230533,1546.0,1545.6,12.93988]
[1744362637269,14.230533,1546.0,1545.7,1.24554281]
[1744362637458,6.46876,1545.9,1545.8,0.60337811]
[1744362637771,6.46876,1545.9,1545.8,0.88281796]
[1744362638354,6.46876,1545.9,1545.8,0.64153802]
[1744362639176,7.762083,1546.0,1545.8,0.36209817]
[1744362639583,6.4684,1546.0,1545.9,0.27857531]
[1744362639760,12.93709,1546.0,1545.6,12.93971]
[1744362639956,67.367381,1546.2,1545.5,0.8227]
[1744362639957,6.46913,1545.9,1545.5,7.29296]
[1744362640162,6.46892,1545.9,1545.6,1.24636063]
[1744362640561,12.93792,1545.9,1545.7,0.60368427]
[1744362640848,12.93792,1545.9,1545.8,0.88288616]
[1744362641049,12.93792,1545.9,1545.8,1.24510723]
[1744362641382,12.93792,1545.9,1545.8,0.96590534]
[1744362641674,6.46892,1545.9,1545.8,0.96590534]
[1744362643484,6.46799,1546.1,1545.8,7.43501534]
[1744362643783,13.76561,1546.2,1545.9,0.60368427]
[1744362643993,20.40239,1546.3,1546.0,0.27788934]
[1744362644172,6.46749,1546.2,1546.1,0.36222107]